{"text_format":"1","workbook":"xlsx","n_sheets":2,"sheets":["data","التقرير اليومي"],"not_rendered":{"charts":0,"images":0,"macros":1,"external_links":0,"defined_names":2,"comments":0,"pivot_tables":0},"unopened":[],"bounds":{"document_bytes":16777216,"sheet_cells":100000,"rows_first":2000,"rows_last":500,"rows_between":2000,"halvings":0,"cell_chars":16384,"cell_head_chars":4096},"cells_cut":0,"cells_raw":0,"read":"whole","date_system":"1900"}

{"sheet":"data","index":0,"n_rows":56,"n_cols":81,"rows_kept":56,"cut":false,"hidden":false,"merged":[[2,61,2,68],[2,73,2,80],[2,39,2,46],[2,51,2,58]]}
[1,2,3,4,5,6,7,8,9,10,11,12,13,14,15,16,17,18,19,20,21,22,23,24,25,26,27,28,29,30,31,32,33,34,35,36,37,38,39,40,41,42,43,44,45,46,47,48,49,50,51,52,53,54,55,56,57,58,59,60,61,62,63,64,65,66,67,68,69,70,71,72,73,74,75,76,77,78,79,80,81]
[]
[null,null,null,"الأحــــد",null,null,null,null,null,null,null,null,null,null,null,"الإثنيــن",null,null,null,null,null,null,null,null,null,null,null,"الثلاثاء",null,null,null,null,null,null,null,null,null,null,null,"الأربعـاء",null,null,null,null,null,null,null,null,null,null,null,"الخميــس"]
[null,null,null,"08ـ09","09ـ10","10ـ11","11ـ12","14½-13½","15½-14½","16½-15½","17½-16½",null,null,null,null,"08ـ09","09ـ10","10ـ11","11ـ12","14½-13½","15½-14½","16½-15½","17½-16½",null,null,null,null,"08ـ09","09ـ10","10ـ11","11ـ12","14½-13½","15½-14½","16½-15½","17½-16½",null,null,null,null,"08ـ09","09ـ10","10ـ11","11ـ12","14½-13½","15½-14½","16½-15½","17½-16½",null,null,null,null,"08ـ09","09ـ10","10ـ11","11ـ12","14½-13½","15½-14½","16½-15½","17½-16½"]
[1,"زيد ","لغة عربية","4م1","4م2","2م1","2م2",null,null,null,null,null,1,"زيد ","لغة عربية","4م1","4م1","4م1",null,null,null,null,null,null,1,"زيد ","لغة عربية",null,null,null,null,null,null,null,null,null,1,"زيد ","لغة عربية",null,null,null,null,null,null,null,null,null,1,"زيد ","لغة عربية","4م1","4م5","2م5"]
[2,"بوزيد","لغة عربية","2م7","1م1","1م2","2م6",null,null,null,null,null,2,"بوزيد","لغة عربية",null,null,null,null,null,null,null,null,null,2,"بوزيد","لغة عربية",null,null,null,null,null,null,null,null,null,2,"بوزيد","لغة عربية",null,null,null,null,null,null,null,null,null,2,"بوزيد","لغة عربية"]
[3,"عمر","لغة عربية",null,null,null,null,null,null,null,null,null,3,"عمر","لغة عربية",null,null,null,null,null,null,null,null,null,3,"عمر","لغة عربية",null,null,null,null,null,null,null,null,null,3,"عمر","لغة عربية",null,null,null,null,null,null,null,null,null,3,"عمر","لغة عربية"]
[4,"خالد","لغة عربية",null,null,null,null,null,null,null,null,null,4,"خالد","لغة عربية",null,null,null,null,null,null,null,null,null,4,"خالد","لغة عربية",null,null,null,null,null,null,null,null,null,4,"خالد","لغة عربية",null,null,null,null,null,null,null,null,null,4,"خالد","لغة عربية"]
[5,"هناء","لغة عربية",null,null,null,null,null,null,null,null,null,5,"هناء","لغة عربية",null,null,null,null,null,null,null,null,null,5,"هناء","لغة عربية",null,null,null,null,null,null,null,null,null,5,"هناء","لغة عربية",null,null,null,null,null,null,null,null,null,5,"هناء","لغة عربية"]
[6,"سناء","لغة عربية",null,null,null,null,null,null,null,null,null,6,"سناء","لغة عربية",null,null,null,null,null,null,null,null,null,6,"سناء","لغة عربية",null,null,null,null,null,null,null,null,null,6,"سناء","لغة عربية",null,null,null,null,null,null,null,null,null,6,"سناء","لغة عربية"]
[7,"مصطفى","لغة عربية",null,null,null,null,null,null,null,null,null,7,"مصطفى","لغة عربية",null,null,null,null,null,null,null,null,null,7,"مصطفى","لغة عربية",null,null,null,null,null,null,null,null,null,7,"مصطفى","لغة عربية",null,null,null,null,null,null,null,null,null,7,"مصطفى","لغة عربية"]
[8,"حسين","لغة عربية",null,null,null,null,null,null,null,null,null,8,"حسين","لغة عربية",null,null,null,null,null,null,null,null,null,8,"حسين","لغة عربية",null,null,null,null,null,null,null,null,null,8,"حسين","لغة عربية",null,null,null,null,null,null,null,null,null,8,"حسين","لغة عربية"]
[9,"الازهر","لغة عربية",null,null,null,null,null,null,null,null,null,9,"الازهر","لغة عربية",null,null,null,null,null,null,null,null,null,9,"الازهر","لغة عربية",null,null,null,null,null,null,null,null,null,9,"الازهر","لغة عربية",null,null,null,null,null,null,null,null,null,9,"الازهر","لغة عربية"]
[10,"عبد الحق","رياضيات",null,null,null,null,null,null,null,null,null,10,"عبد الحق","رياضيات",null,null,null,null,null,null,null,null,null,10,"عبد الحق","رياضيات",null,null,null,null,null,null,null,null,null,10,"عبد الحق","رياضيات",null,null,null,null,null,null,null,null,null,10,"عبد الحق","رياضيات"]
[11,"عبد الله","رياضيات",null,null,null,null,null,null,null,null,null,11,"عبد الله","رياضيات",null,null,null,null,null,null,null,null,null,11,"عبد الله","رياضيات",null,null,null,null,null,null,null,null,null,11,"عبد الله","رياضيات",null,null,null,null,null,null,null,null,null,11,"عبد الله","رياضيات"]
[12,"عبد الستار","رياضيات",null,null,null,null,null,null,null,null,null,12,"عبد الستار","رياضيات",null,null,null,null,null,null,null,null,null,12,"عبد الستار","رياضيات",null,null,null,null,null,null,null,null,null,12,"عبد الستار","رياضيات",null,null,null,null,null,null,null,null,null,12,"عبد الستار","رياضيات"]
[13,"احمد","رياضيات",null,null,null,null,null,null,null,null,null,13,"احمد","رياضيات",null,null,null,null,null,null,null,null,null,13,"احمد","رياضيات",null,null,null,null,null,null,null,null,null,13,"احمد","رياضيات",null,null,null,null,null,null,null,null,null,13,"احمد","رياضيات"]
[14,"محمد","رياضيات",null,null,null,null,null,null,null,null,null,14,"محمد","رياضيات",null,null,null,null,null,null,null,null,null,14,"محمد","رياضيات",null,null,null,null,null,null,null,null,null,14,"محمد","رياضيات",null,null,null,null,null,null,null,null,null,14,"محمد","رياضيات"]
[15,"علي","رياضيات",null,null,null,null,null,null,null,null,null,15,"علي","رياضيات",null,null,null,null,null,null,null,null,null,15,"علي","رياضيات",null,null,null,null,null,null,null,null,null,15,"علي","رياضيات",null,null,null,null,null,null,null,null,null,15,"علي","رياضيات"]
[16,"إبراهيم","رياضيات",null,null,null,null,null,null,null,null,null,16,"إبراهيم","رياضيات",null,null,null,null,null,null,null,null,null,16,"إبراهيم","رياضيات",null,null,null,null,null,null,null,null,null,16,"إبراهيم","رياضيات",null,null,null,null,null,null,null,null,null,16,"إبراهيم","رياضيات"]
[17,"موسى","اجتماعيات",null,null,null,null,null,null,null,null,null,17,"موسى","اجتماعيات",null,null,null,null,null,null,null,null,null,17,"موسى","اجتماعيات",null,null,null,null,null,null,null,null,null,17,"موسى","اجتماعيات",null,null,null,null,null,null,null,null,null,17,"موسى","اجتماعيات"]
[18,"خديجة","اجتماعيات",null,null,null,null,null,null,null,null,null,18,"خديجة","اجتماعيات",null,null,null,null,null,null,null,null,null,18,"خديجة","اجتماعيات",null,null,null,null,null,null,null,null,null,18,"خديجة","اجتماعيات",null,null,null,null,null,null,null,null,null,18,"خديجة","اجتماعيات"]
[19,"عبد الحي","اجتماعيات",null,null,null,null,null,null,null,null,null,19,"عبد الحي","اجتماعيات",null,null,null,null,null,null,null,null,null,19,"عبد الحي","اجتماعيات",null,null,null,null,null,null,null,null,null,19,"عبد الحي","اجتماعيات",null,null,null,null,null,null,null,null,null,19,"عبد الحي","اجتماعيات"]
[20,"عبد الحليم","اجتماعيات",null,null,null,null,null,null,null,null,null,20,"عبد الحليم","اجتماعيات",null,null,null,null,null,null,null,null,null,20,"عبد الحليم","اجتماعيات",null,null,null,null,null,null,null,null,null,20,"عبد الحليم","اجتماعيات",null,null,null,null,null,null,null,null,null,20,"عبد الحليم","اجتماعيات"]
[21,"مسعود","فيزياء",null,null,null,null,null,null,null,null,null,21,"مسعود","فيزياء",null,null,null,null,null,null,null,null,null,21,"مسعود","فيزياء",null,null,null,null,null,null,null,null,null,21,"مسعود","فيزياء",null,null,null,null,null,null,null,null,null,21,"مسعود","فيزياء"]
[22,"خضرة","فيزياء",null,null,null,null,null,null,null,null,null,22,"خضرة","فيزياء",null,null,null,null,null,null,null,null,null,22,"خضرة","فيزياء",null,null,null,null,null,null,null,null,null,22,"خضرة","فيزياء",null,null,null,null,null,null,null,null,null,22,"خضرة","فيزياء"]
[23,"زكية","فيزياء",null,null,null,null,null,null,null,null,null,23,"زكية","فيزياء",null,null,null,null,null,null,null,null,null,23,"زكية","فيزياء",null,null,null,null,null,null,null,null,null,23,"زكية","فيزياء",null,null,null,null,null,null,null,null,null,23,"زكية","فيزياء"]
[24,"عبد الرؤوف","فيزياء",null,null,null,null,null,null,null,null,null,24,"عبد الرؤوف","فيزياء",null,null,null,null,null,null,null,null,null,24,"عبد الرؤوف","فيزياء",null,null,null,null,null,null,null,null,null,24,"عبد الرؤوف","فيزياء",null,null,null,null,null,null,null,null,null,24,"عبد الرؤوف","فيزياء"]
[25,"عبد المنتقم","علوم طبيعية",null,null,null,null,null,null,null,null,null,25,"عبد المنتقم","علوم طبيعية",null,null,null,null,null,null,null,null,null,25,"عبد المنتقم","علوم طبيعية",null,null,null,null,null,null,null,null,null,25,"عبد المنتقم","علوم طبيعية",null,null,null,null,null,null,null,null,null,25,"عبد المنتقم","علوم طبيعية"]
[26,"عبد الرزاق","علوم طبيعية",null,null,null,null,null,null,null,null,null,26,"عبد الرزاق","علوم طبيعية",null,null,null,null,null,null,null,null,null,26,"عبد الرزاق","علوم طبيعية",null,null,null,null,null,null,null,null,null,26,"عبد الرزاق","علوم طبيعية",null,null,null,null,null,null,null,null,null,26,"عبد الرزاق","علوم طبيعية"]
[27,"بلقاسم","علوم طبيعية",null,null,null,null,null,null,null,null,null,27,"بلقاسم","علوم طبيعية",null,null,null,null,null,null,null,null,null,27,"بلقاسم","علوم طبيعية",null,null,null,null,null,null,null,null,null,27,"بلقاسم","علوم طبيعية",null,null,null,null,null,null,null,null,null,27,"بلقاسم","علوم طبيعية"]
[28,"رضوان","علوم طبيعية",null,null,null,null,null,null,null,null,null,28,"رضوان","علوم طبيعية",null,null,null,null,null,null,null,null,null,28,"رضوان","علوم طبيعية",null,null,null,null,null,null,null,null,null,28,"رضوان","علوم طبيعية",null,null,null,null,null,null,null,null,null,28,"رضوان","علوم طبيعية"]
[29,"عبد الرحمان","انجليزية",null,null,null,null,null,null,null,null,null,29,"عبد الرحمان","انجليزية",null,null,null,null,null,null,null,null,null,29,"عبد الرحمان","انجليزية",null,null,null,null,null,null,null,null,null,29,"عبد الرحمان","انجليزية",null,null,null,null,null,null,null,null,null,29,"عبد الرحمان","انجليزية"]
[30,"أنور","انجليزية",null,null,null,null,null,null,null,null,null,30,"أنور","انجليزية",null,null,null,null,null,null,null,null,null,30,"أنور","انجليزية",null,null,null,null,null,null,null,null,null,30,"أنور","انجليزية",null,null,null,null,null,null,null,null,null,30,"أنور","انجليزية"]
[31,"عمر","انجليزية",null,null,null,null,null,null,null,null,null,31,"عمر","انجليزية",null,null,null,null,null,null,null,null,null,31,"عمر","انجليزية",null,null,null,null,null,null,null,null,null,31,"عمر","انجليزية",null,null,null,null,null,null,null,null,null,31,"عمر","انجليزية"]
[32,"عثمان","انجليزية",null,null,null,null,null,null,null,null,null,32,"عثمان","انجليزية",null,null,null,null,null,null,null,null,null,32,"عثمان","انجليزية",null,null,null,null,null,null,null,null,null,32,"عثمان","انجليزية",null,null,null,null,null,null,null,null,null,32,"عثمان","انجليزية"]
[33,"زيان","انجليزية",null,null,null,null,null,null,null,null,null,33,"زيان","انجليزية",null,null,null,null,null,null,null,null,null,33,"زيان","انجليزية",null,null,null,null,null,null,null,null,null,33,"زيان","انجليزية",null,null,null,null,null,null,null,null,null,33,"زيان","انجليزية"]
[34,"سامية","لغة فرنسية",null,null,null,null,null,null,null,null,null,34,"سامية","لغة فرنسية",null,null,null,null,null,null,null,null,null,34,"سامية","لغة فرنسية",null,null,null,null,null,null,null,null,null,34,"سامية","لغة فرنسية",null,null,null,null,null,null,null,null,null,34,"سامية","لغة فرنسية"]
[35,"ياسمين","لغة فرنسية",null,null,null,null,null,null,null,null,null,35,"ياسمين","لغة فرنسية",null,null,null,null,null,null,null,null,null,35,"ياسمين","لغة فرنسية",null,null,null,null,null,null,null,null,null,35,"ياسمين","لغة فرنسية",null,null,null,null,null,null,null,null,null,35,"ياسمين","لغة فرنسية"]
[36,"لجين","لغة فرنسية",null,null,null,null,null,null,null,null,null,36,"لجين","لغة فرنسية",null,null,null,null,null,null,null,null,null,36,"لجين","لغة فرنسية",null,null,null,null,null,null,null,null,null,36,"لجين","لغة فرنسية",null,null,null,null,null,null,null,null,null,36,"لجين","لغة فرنسية"]
[37,"ليلى","لغة فرنسية",null,null,null,null,null,null,null,null,null,37,"ليلى","لغة فرنسية",null,null,null,null,null,null,null,null,null,37,"ليلى","لغة فرنسية",null,null,null,null,null,null,null,null,null,37,"ليلى","لغة فرنسية",null,null,null,null,null,null,null,null,null,37,"ليلى","لغة فرنسية"]
[38,"نزيهة","لغة فرنسية",null,null,null,null,null,null,null,null,null,38,"نزيهة","لغة فرنسية",null,null,null,null,null,null,null,null,null,38,"نزيهة","لغة فرنسية",null,null,null,null,null,null,null,null,null,38,"نزيهة","لغة فرنسية",null,null,null,null,null,null,null,null,null,38,"نزيهة","لغة فرنسية"]
[39,"قدور","لغة فرنسية",null,null,null,null,null,null,null,null,null,39,"قدور","لغة فرنسية",null,null,null,null,null,null,null,null,null,39,"قدور","لغة فرنسية",null,null,null,null,null,null,null,null,null,39,"قدور","لغة فرنسية",null,null,null,null,null,null,null,null,null,39,"قدور","لغة فرنسية"]
[40,"عادل","لغة فرنسية",null,null,null,null,null,null,null,null,null,40,"عادل","لغة فرنسية",null,null,null,null,null,null,null,null,null,40,"عادل","لغة فرنسية",null,null,null,null,null,null,null,null,null,40,"عادل","لغة فرنسية",null,null,null,null,null,null,null,null,null,40,"عادل","لغة فرنسية"]
[41,"مصطفى","رياضة",null,null,null,null,null,null,null,null,null,41,"مصطفى","رياضة",null,null,null,null,null,null,null,null,null,41,"مصطفى","رياضة",null,null,null,null,null,null,null,null,null,41,"مصطفى","رياضة",null,null,null,null,null,null,null,null,null,41,"مصطفى","رياضة"]
[42,"عبد الخالق","رياضة",null,null,null,null,null,null,null,null,null,42,"عبد الخالق","رياضة",null,null,null,null,null,null,null,null,null,42,"عبد الخالق","رياضة",null,null,null,null,null,null,null,null,null,42,"عبد الخالق","رياضة",null,null,null,null,null,null,null,null,null,42,"عبد الخالق","رياضة"]
[43,"عبد الجبار","رياضة",null,null,null,null,null,null,null,null,null,43,"عبد الجبار","رياضة",null,null,null,null,null,null,null,null,null,43,"عبد الجبار","رياضة",null,null,null,null,null,null,null,null,null,43,"عبد الجبار","رياضة",null,null,null,null,null,null,null,null,null,43,"عبد الجبار","رياضة"]
[44,"عبد السميع","اعلام آلي","1م1","1م1",null,null,null,null,null,null,null,44,"عبد السميع","اعلام آلي",null,null,null,null,null,null,null,null,null,44,"عبد السميع","اعلام آلي",null,null,null,null,null,null,null,null,null,44,"عبد السميع","اعلام آلي",null,null,null,null,null,null,null,null,null,44,"عبد السميع","اعلام آلي"]
[45,"عائشة","اعلام آلي","1م2","1م2",null,null,null,null,null,null,null,45,"عائشة","اعلام آلي",null,null,null,null,null,null,null,null,null,45,"عائشة","اعلام آلي",null,null,null,null,null,null,null,null,null,45,"عائشة","اعلام آلي",null,null,null,null,null,null,null,null,null,45,"عائشة","اعلام آلي"]
[46,"صالح","اعلام آلي","1م3","1م3",null,null,null,null,null,null,null,46,"صالح","اعلام آلي","3م1","3م1",null,null,null,null,null,null,null,46,"صالح","اعلام آلي",null,null,null,null,null,null,null,null,null,46,"صالح","اعلام آلي",null,null,null,null,null,null,null,null,null,46,"صالح","اعلام آلي"]
[]
[null,null,null,null,null,null,null,null,null,null,null,null,null,null,null,null,null,null,null,null,null,null,null,null,"الأحــــد"]
[null,null,null,null,null,null,null,null,null,null,null,null,null,null,null,null,null,null,null,null,null,null,null,null,"الإثنيــن"]
[null,null,null,null,null,null,null,null,null,null,null,null,null,null,null,null,null,null,null,null,null,null,null,null,"الثلاثاء"]
[null,null,null,null,null,null,null,null,null,null,null,null,null,null,null,null,null,null,null,null,null,null,null,null,"الأربعـاء"]
[null,null,null,null,null,null,null,null,null,null,null,null,null,null,null,null,null,null,null,null,null,null,null,null,"الخميــس"]

{"sheet":"التقرير اليومي","index":1,"n_rows":168,"n_cols":19,"rows_kept":168,"cut":false,"hidden":false,"merged":[[0,13,0,14],[2,10,2,13],[3,7,5,7],[5,13,5,14],[9,2,9,3],[25,2,25,3],[26,2,26,3],[27,2,27,3],[28,2,28,3],[19,2,19,3],[20,2,20,3],[21,2,21,3],[22,2,22,3],[23,2,23,3],[29,2,29,3],[116,4,116,11],[0,0,0,12],[1,0,1,12],[3,8,3,9],[3,10,3,11],[10,2,10,3],[11,2,11,3],[12,2,12,3],[13,2,13,3],[14,2,14,3],[15,2,15,3],[16,2,16,3],[17,2,17,3],[18,2,18,3],[24,2,24,3]]}
["الجمهورية الجزائرية الديمقراطية الشعبية "]
["وزارة التربية الوطنية "]
[null,"مديرية التربية لولاية :",null,null,null,null,null,null,null,null,"متوسطة "]
[null,null,null,null,null,null,null,1,"الأحــــد",null,{"$f":"(TODAY())","v":"2019-09-05"}]
[]
[]
[]
[]
[null,"مواظبـــــــة الأســاتذة : "]
["ر.ت","الرقم","اسم الأستاذ",null,"المادة","08ـ09","09ـ10","10ـ11","11ـ12","15-14","16-15","17-16",null,"ملاحظات",null,null,null,null,"اريد كود بحيث يحفظ شيت التقرير اليومي كل يوم "]
[1,1,{"$f":"IFERROR(VLOOKUP(A11,temp,2,0),\"\")","v":"زيد "},null,{"$f":"IFERROR(VLOOKUP(A11,temp,3,0),\"\")","v":"لغة عربية"},{"$f":"IFERROR(VLOOKUP(A11,temp,4,0),\"\")","v":"4م1"},{"$f":"IFERROR(VLOOKUP(A11,temp,5,0),\"\")","v":"4م2"},{"$f":"IFERROR(VLOOKUP(A11,temp,6,0),\"\")","v":"2م1"},{"$f":"IFERROR(VLOOKUP(A11,temp,7,0),\"\")","v":"2م2"},{"$f":"IFERROR(VLOOKUP(A11,temp,8,0),\"\")","v":0},{"$f":"IFERROR(VLOOKUP(A11,temp,9,0),\"\")","v":0},{"$f":"IFERROR(VLOOKUP(A11,temp,10,0),\"\")","v":0}]
[2,2,"بوزيد",null,"لغة عربية",{"$f":"IFERROR(VLOOKUP(A12,temp,4,0),\"\")","v":"2م7"},"1م1","1م2","2م6",0,0,0]
[null,3,"",null,"","","","","","","",""]
[null,4,"",null,"","","","","","","",""]
[null,5,"",null,"","","","","","","",""]
[null,6,"",null,"","","","","","","",""]
[null,7,"",null,"","","","","","","",""]
[null,8,"",null,"","","","","","","",""]
[null,9,"",null,"","","","","","","",""]
[null,10,"",null,"","","","","","","",""]
[null,11,"",null,"","","","","","","",""]
[null,12,"",null,"","","","","","","",""]
[null,13,"",null,"","","","","","","",""]
[null,14,"",null,"","","","","","","",""]
[null,15,"",null,"","","","","","","",""]
[null,16,"",null,"","","","","","","",""]
[null,17,"",null,"","","","","","","",""]
[null,18,"",null,"","","","","","","",""]
[null,19,"",null,"","","","","","","",""]
[null,20,"",null,"","","","","","","",""]
[]
[]
[]
[]
[]
[]
[]
[]
[]
[]
[]
[]
[]
[]
[]
[]
[]
[]
[]
[]
[]
[]
[]
[]
[]
[]
[]
[]
[]
[]
[]
[]
[]
[]
[]
[]
[]
[]
[]
[]
[]
[]
[]
[]
[]
[]
[]
[]
[]
[]
[]
[]
[]
[]
[]
[]
[]
[]
[]
[]
[]
[]
[]
[]
[]
[]
[]
[]
[]
[]
[]
[]
[]
[]
[]
[]
[]
[]
[]
[]
[]
[]
[]
[]
[]
[]
[null,null,null,null,"الأحــــد"]
[null,"الرقم ","اسم الأستاذ","المادة","09 .08","10 .09","11 .10 ","12 .11","14.30 .13.30","15.30 .14.30","16.30 .15.30 ","17.30 .16.30"]
[null,1,"زيد ","لغة عربية","4م1","4م2","2م1","2م2"]
[null,2,"بوزيد","لغة عربية","2م7","1م1","1م2","2م6"]
[null,3,"عمر","لغة عربية"]
[null,4,"خالد","لغة عربية"]
[null,5,"هناء","لغة عربية"]
[null,6,"سناء","لغة عربية"]
[null,7,"مصطفى","لغة عربية"]
[null,8,"حسين","لغة عربية"]
[null,9,"الازهر","لغة عربية"]
[null,10,"عبد الحق","رياضيات"]
[null,11,"عبد الله","رياضيات"]
[null,12,"عبد الستار","رياضيات"]
[null,13,"احمد","رياضيات"]
[null,14,"محمد","رياضيات"]
[null,15,"علي","رياضيات"]
[null,16,"إبراهيم","رياضيات"]
[null,17,"موسى","اجتماعيات"]
[null,18,"خديجة","اجتماعيات"]
[null,19,"عبد الحي","اجتماعيات"]
[null,20,"عبد الحليم","اجتماعيات"]
[null,21,"مسعود","فيزياء"]
[null,22,"خضرة","فيزياء"]
[null,23,"زكية","فيزياء"]
[null,24,"عبد الرؤوف","فيزياء"]
[null,25,"عبد المنتقم","علوم طبيعية"]
[null,26,"عبد الرزاق","علوم طبيعية"]
[null,27,"بلقاسم","علوم طبيعية"]
[null,28,"رضوان","علوم طبيعية"]
[null,29,"عبد الرحمان","انجليزية"]
[null,30,"أنور","انجليزية"]
[null,31,"عمر","انجليزية"]
[null,32,"عثمان","انجليزية"]
[null,33,"زيان","انجليزية"]
[null,34,"سامية","لغة فرنسية"]
[null,35,"ياسمين","لغة فرنسية"]
[null,36,"لجين","لغة فرنسية"]
[null,37,"ليلى","لغة فرنسية"]
[null,38,"نزيهة","لغة فرنسية"]
[null,39,"قدور","لغة فرنسية"]
[null,40,"عادل","لغة فرنسية"]
[null,41,"مصطفى","رياضة"]
[null,42,"عبد الخالق","رياضة"]
[null,43,"عبد الجبار","رياضة"]
[null,44,"عبد السميع","اعلام آلي","1م1","1م1"]
[null,45,"عائشة","اعلام آلي","1م2","1م2"]
[null,46,"صالح","اعلام آلي","1م3","1م3"]
[null,47]
[null,48]
[null,49]
[null,50]